Cogmind - Beta 15 @@@ ROGUE MODE // 2025.06.27 @ 08:17:21 Player: Dakune Result: Destroyed by G-47 Trooper with Particle Gun Performance ------------- Evolutions (2) 1000 Regions Visited (4) 800 Robots Destroyed (21) 105 Value Destroyed (532) 532 Prototype IDs (2) 40 Alien Tech Used (0) 0 Bonus (0) 0 TOTAL SCORE: 2477 Bonus ------- None Cogmind --------- Core Integrity 0/550 Matter 300/300 Energy 100/100 System Corruption 2% Temperature Cool (18) Movement Core (50) Location -8/Materials Parts ------- > --- POWER (1) -------- (None) > --- PROPULSION (2) --- (None) > --- UTILITY (6) ------ (None) > --- WEAPON (2) ------- (None) > --- INVENTORY (5) ---- Large Storage Unit Peak State ------------ > --- POWER ------------ Ion Engine > --- PROPULSION ------- Aluminum Leg Aluminum Leg > --- UTILITY ---------- Scrap Suit Medium Storage Unit Core Shielding Scrap Shield > --- WEAPON ----------- Small Laser > --- INVENTORY -------- Aluminum Leg Aluminum Leg Large Storage Unit [Rating: 18] Favorites ----------- Power Light Ion Engine Engine Light Ion Engine Propulsion Aluminum Leg Leg Aluminum Leg Utility Medium Storage Unit Device Scrap Suit Storage Medium Storage Unit Protection Light Armor Plating Weapon Small Laser Energy Gun Small Laser Ballistic Gun Light Assault Rifle Special Weapon Flamer Build | -11 -10 -10 -10 -8 ------- Run | Yrd Mat Min Sub Mat Slots Evolved 4 | . . . . 4 Power . | . . . . . Propulsion . | . . . . . Utility 4 | . . . . 4 Weapon . | . . . . . Parts Attached 24 | 5 5 1 3 10 Power 6 | 1 1 1 . 3 Engine 6 | 1 1 1 . 3 Core . | . . . . . Reactor . | . . . . . Propulsion 6 | 2 2 . . 2 Treads . | . . . . . Leg 6 | 2 2 . . 2 Wheel . | . . . . . Hover . | . . . . . Flight . | . . . . . Utility 5 | . 2 . . 3 Device 1 | . . . . 1 Storage 1 | . 1 . . . Processor . | . . . . . Hackware . | . . . . . Protection 3 | . 1 . . 2 Artifact . | . . . . . Weapon 7 | 2 . . 3 2 Energy Gun 2 | 1 . . 1 . Energy Cannon . | . . . . . Ballistic Gun 2 | 1 . . 1 . Ballistic Cannon . | . . . . . Launcher . | . . . . . Special Weapon 3 | . . . 1 2 Impact Weapon . | . . . . . Slashing Weapon . | . . . . . Piercing Weapon . | . . . . . Special Melee Weapon . | . . . . . Unidentified Prototypes . | . . . . . Parts Lost 19 | . 1 . 4 14 Power 5 | . 1 . 1 3 Propulsion 4 | . . . . 4 Utility 5 | . . . 1 4 Weapon 5 | . . . 2 3 Highest Loss Streak 14 | . 1 . 3 14 To Critical Strikes . | . . . . . Average Backups 4 | 1 3 6 7 3 Power . | . . 1 1 . Propulsion 1 | 1 2 2 2 1 Utility 1 | . . 2 3 1 Weapon . | . . 1 . . Tool/Special . | . . . . . Unused Backups 2 | . 1 . . 1 Power . | . . . . . Propulsion 1 | . 1 . . . Utility 1 | . . . . 1 Weapon . | . . . . . Tool/Special . | . . . . . Average Slot Usage (%) 82 | . 83 91 93 54 Engine 8 | . 10 6 11 7 Leg 25 | . 28 28 28 13 Device 1 | . . . . 7 Storage 11 | . 9 14 14 8 Protection 10 | . 5 14 11 12 Energy Gun 12 | . 14 14 14 5 Ballistic Gun 11 | . 14 14 12 . Peak Build Rating 18 | 5 7 8 9 18 Average Rating 7 | 4 5 7 8 13 On Entrance 4 | . 5 6 8 5 Naked Turns 1 | . . . . 1 Heaviest Build 39 | 5 20 18 21 39 Greatest Support 20 | 20 20 20 20 20 Greatest Overweight (x) 5 | . . . 1 5 Average Overweight (x) . | . . . . 1 Largest Inventory Capacity 10 | 5 10 10 10 10 Average Capacity 8 | 5 8 10 10 9 Most Carried 10 | 3 6 8 10 7 Average Carried 5 | 1 3 7 9 3 Final Capacity 10 | 5 10 10 10 5 Final Carried 9 | 3 6 8 9 1 Class Distribution -------------------- 84% | Mutant 15% | Scavenger-Mutant Dominant Class ---------------- Mutant | -10/Materials Mutant | -10/Mines Scavenger-Mutant | -10/Subcaves Scavenger-Mutant | -8/Materials Resources | -11 -10 -10 -10 -8 ----------- Run | Yrd Mat Min Sub Mat Matter Collected 390 | 258 74 35 23 . Remotely . | . . . . . Salvage Created 646 | 73 387 79 48 59 Parts 47 | 9 26 6 6 . Haulers Intercepted . | . . . . . Recyclers Shooed . | . . . . . Parts Field Recycled . | . . . . . Retrieved Matter . | . . . . . Parts Self-Destructed 9 | . . . 9 . Prevented . | . . . . . Kills | -11 -10 -10 -10 -8 ------- Run | Yrd Mat Min Sub Mat Combat Hostiles Destroyed 18 | 1 9 5 2 1 Guns 17 | 1 9 5 1 1 Cannons 1 | . . . 1 . Classes Destroyed 6 | 2 1 1 1 1 Tunneler 2 | 2 . . . . Watcher 1 | . 1 . . . Swarmer 6 | . . 5 1 . Grunt 10 | 1 9 . . . Brawler 1 | . . . . 1 Subdweller 1 | . . . 1 . Best Kill Streak 3 | 3 3 3 1 1 Combat Bots Only 3 | 1 3 3 1 1 Max Kills in Single Turn 2 | 1 1 2 1 1 Gunslinging 1 | . . 1 . . Exploded . | . . . . . Melee . | . . . . . Uniques/NPCs Destroyed . | . . . . . Combat | -11 -10 -10 -10 -8 -------- Run | Yrd Mat Min Sub Mat Hostile Shots Fired 291 | 10 46 14 56 165 Missed 90 | 5 11 4 31 39 Hits 201 | 5 35 10 25 126 Melee 1 | . . . . 1 Projectile 200 | 5 35 10 25 125 AOE 1 | . . . 1 . Critical Strikes 9 | . 1 . . 8 Damage Taken 2895 | 52 429 70 373 1971 Core 698 | . 32 8 107 551 Absorbed by Shields . | . . . . . Redirected to Shielding 52 | . . . . 52 Core Remaining (%) 70 | 100 . . 41 . Volleys Fired 83 | 8 54 10 5 6 Largest 2 | 2 2 2 2 1 Hottest 140 | 60 60 60 140 40 Shots Fired 159 | 16 107 20 10 6 Gun 158 | 16 107 20 9 6 Cannon . | . . . . . Launcher . | . . . . . Special 1 | . . . 1 . Kinetic 76 | 8 54 10 4 . Thermal 83 | 8 53 10 6 6 Explosive . | . . . . . Electromagnetic . | . . . . . Robot Hit Streak 26 | 5 26 4 11 7 Robot Miss Streak 6 | 2 5 6 1 . Penetration Max . | . . . . . Secondary Targets 1 | . . 1 . . Max Gunslinging Chain 1 | . . 1 . . Shots Hit Robots 100 | 10 67 9 8 6 Core Hits 47 | 5 24 6 2 10 Critical Kills . | . . . . . Critical Parts Destroyed . | . . . . . Critical Strikes . | . . . . . Melee Attacks . | . . . . . Impact . | . . . . . Slashing . | . . . . . Piercing . | . . . . . Sneak Attacks . | . . . . . Combat Hostiles . | . . . . . Follow-up Attacks . | . . . . . Damage Inflicted 1039 | 105 644 84 112 94 Guns 1002 | 105 644 84 100 69 Cannons . | . . . . . Explosions . | . . . . . Melee . | . . . . . Ramming 25 | . . . . 25 Kinetic 408 | 50 268 33 57 . Thermal 606 | 55 376 51 55 69 Explosive . | . . . . . Electromagnetic . | . . . . . Impact . | . . . . . Slashing . | . . . . . Piercing . | . . . . . Highest Corruption 2 | . . . . 2 Average Corruption 2 | . . . . 2 Corruption Purged . | . . . . . Corruption Blocked . | . . . . . Overload Shots . | . . . . . Overflow Damage . | . . . . . Projectiles . | . . . . . Explosions . | . . . . . Melee . | . . . . . Knockbacks . | . . . . . Impact . | . . . . . Kinetic . | . . . . . Secondary . | . . . . . Self-Inflicted Damage 2 | . . . . 2 Shots . | . . . . . Rammed 7 | . . . . 7 Targets Rammed 15 | . . . . 15 Kicked 8 | . . . . 8 Crushed . | . . . . . Highest Temperature 154 | 70 154 32 . 21 Average Temperature 41 | 41 48 16 . 9 Received Heat Transfer 1629 | 30 258 . 72 1269 Siege Activations . | . . . . . Martial Activations . | . . . . . Shielding Activations . | . . . . . Robots Disrupted . | . . . . . Combat Hostiles . | . . . . . Robots Corrupted . | . . . . . Combat Hostiles . | . . . . . Parts Fried . | . . . . . Impact Corruptions . | . . . . . Robots Melted . | . . . . . Combat Hostiles . | . . . . . Parts Melted . | . . . . . Heat Transferred 1430 | 125 850 125 180 150 Parts Sabotaged . | . . . . . Parts Stolen . | . . . . . Parts Stripped . | . . . . . Power Chain Reactions . | . . . . . Alert | -11 -10 -10 -10 -8 ------- Run | Yrd Mat Min Sub Mat Maximum Alert Level . | . . . . . Low Security (%) 100 | 100 100 100 . 100 Level 1 . | . . . . . Level 2 . | . . . . . Level 3 . | . . . . . Level 4 . | . . . . . Level 5 . | . . . . . High Security . | . . . . . Max Security . | . . . . . Peak Influence 65 | 30 50 65 . 39 Initial 39 | . . 1 . 39 Average 12 | 4 14 14 . 9 Influence Increases 567 | 30 257 135 95 50 Destroy 0b10 Robot/C 340 | 20 180 100 20 20 Destroy 0b10 Robot/NC 15 | 10 5 . . . Destroy Leader 72 | . 42 20 . 10 Successful Hack 20 | . 15 . . 5 Lose Combat Pursuer 120 | . 15 15 75 15 Influence Decreases 567 | 30 253 139 20 125 Entered New Map 39 | . . 3 . 36 Time Decay 483 | 30 243 136 10 64 Lost Part 45 | . 10 . 10 25 Squads Dispatched 5 | . 3 . . 2 Investigation 3 | . 2 . . 1 Extermination . | . . . . . Reinforcement 2 | . 1 . . 1 Assault . | . . . . . Garrison . | . . . . . Intercept . | . . . . . Searches Triggered . | . . . . . Construction Impeded . | . . . . . Haulers Reinforced . | . . . . . Active Scanning Responses . | . . . . . Cargo Convoy Interrupts . | . . . . . Stealth | -11 -10 -10 -10 -8 --------- Run | Yrd Mat Min Sub Mat Distress Signals 1 | . 1 . . . Communications Jammed . | . . . . . Distress Signals . | . . . . . Times Spotted 51 | 1 19 5 17 9 Peak Tracking Total 13 | 1 3 3 13 8 Tactical Retreats 5 | . 1 1 2 1 Traps | -11 -10 -10 -10 -8 ------- Run | Yrd Mat Min Sub Mat Traps Triggered 1 | . . . . 1 Indirectly . | . . . . . Trap Hack Attempts . | . . . . . Triggered . | . . . . . Disarmed . | . . . . . Reprogrammed . | . . . . . Reused . | . . . . . Traps Extracted . | . . . . . Installed . | . . . . . Triggered . | . . . . . Machines | -11 -10 -10 -10 -8 ---------- Run | Yrd Mat Min Sub Mat Machines Disabled . | . . . . . Max in Single Turn . | . . . . . Machines Repaired . | . . . . . Machines Dismantled . | . . . . . Machines Sabotaged . | . . . . . Overloaded Fab Kills . | . . . . . Hacking | -11 -10 -10 -10 -8 --------- Run | Yrd Mat Min Sub Mat Machines Accessed 6 | . 5 . . 1 Terminals 5 | . 4 . . 1 Fabricators . | . . . . . Repair Stations . | . . . . . Recycling Units 1 | . 1 . . . Scanalyzers . | . . . . . Garrison Access . | . . . . . Total Hacks 13 | . 12 . . 1 Successful 7 | . 6 . . 1 Failed 6 | . 6 . . . Catastrophic . | . . . . . Database Lockouts . | . . . . . Manual . | . . . . . Terminals 10 | . 9 . . 1 Fabricators . | . . . . . Repair Stations . | . . . . . Recycling Units 3 | . 3 . . . Scanalyzers . | . . . . . Garrison Access . | . . . . . Terminal Hacks 5 | . 4 . . 1 Record 1 | . 1 . . . Robot Analysis 1 | . 1 . . . Prototype ID Bank 1 | . . . . 1 Emergency Access Points 1 | . 1 . . . Locate Traps 1 | . 1 . . . Fabricator Hacks . | . . . . . Repair Station Hacks . | . . . . . Recycling Unit Hacks 2 | . 2 . . . Recycle Component 1 | . 1 . . . Process 1 | . 1 . . . Scanalyzer . | . . . . . Garrison Access Hacks . | . . . . . Unauthorized Hacks . | . . . . . Terminals . | . . . . . Fabricators . | . . . . . Repair Stations . | . . . . . Recycling Units . | . . . . . Scanalyzers . | . . . . . Garrison Access . | . . . . . Data Cores Recovered . | . . . . . Used . | . . . . . Hacking Detections 5 | . 5 . . . Full Trace Events 2 | . 2 . . . Feedback Events . | . . . . . Feedback Blocked . | . . . . . Robot Schematics Acquired . | . . . . . Robots Built . | . . . . . Authchips . | . . . . . Time . | . . . . . Total Robot Build Rating . | . . . . . Part Schematics Acquired . | . . . . . Parts Built . | . . . . . Authchips . | . . . . . Time . | . . . . . Total Part Build Rating . | . . . . . Parts Repaired . | . . . . . Time . | . . . . . Parts Recycled 1 | . 1 . . . Recycled Matter 20 | . 20 . . . Retrieved Matter . | . . . . . Retrieved Components . | . . . . . Parts Scanalyzed . | . . . . . Part Schematics Acquired . | . . . . . Parts Damaged . | . . . . . Bothacking | -11 -10 -10 -10 -8 ------------ Run | Yrd Mat Min Sub Mat Used RIF Installer . | . . . . . Robots Hacked . | . . . . . Non-combat . | . . . . . Combat . | . . . . . Robot Hacks Applied . | . . . . . Relay Couplers Released . | . . . . . Fabnet Peak Effective % . | . . . . . Robots Rewired . | . . . . . Allies Hacked . | . . . . . Hacks Repelled . | . . . . . Allies | -11 -10 -10 -10 -8 -------- Run | Yrd Mat Min Sub Mat Total Allies . | . . . . . Largest Group . | . . . . . Highest-Rated Group . | . . . . . Highest-Rated Ally . | . . . . . Total Orders . | . . . . . Ally Attacks . | . . . . . Total Damage . | . . . . . Kills . | . . . . . Allies Corrupted . | . . . . . Allies Melted . | . . . . . Intel | -11 -10 -10 -10 -8 ------- Run | Yrd Mat Min Sub Mat Active Infowar (turns) . | . . . . . Robot Analysis Total 1 | . 1 . . . Derelict Logs Recovered 1 | . . 1 . . Drone Launches . | . . . . . Drone Recoveries . | . . . . . Exploration | -11 -10 -10 -10 -8 ------------- Run | Yrd Mat Min Sub Mat Turns Passed 2262 | 206 839 638 269 310 Spaces Moved 1384 | 74 538 491 155 126 Core 41 | 15 . . . 26 Treads . | . . . . . Legs 1343 | 59 538 491 155 100 Wheels . | . . . . . Hover . | . . . . . Flight . | . . . . . Fastest Speed 50 | 50 120 120 120 120 Average Speed 129 | 105 120 120 152 195 Slowest Speed 300 | 120 120 120 190 300 Overloaded Moves . | . . . . . Propulsion Burnouts . | . . . . . Robots Hopped . | . . . . . Potential Cave-ins . | . . . . . Cave-ins Triggered . | . . . . . Exploration Rate (%) 40 | 12 82 83 13 14 Regions Visited 4 Branch Regions 2 Pre-discovered Areas . | . . . . . Known Exits Taken . | . . . . . Unknown Exits Taken 4 | 1 1 1 1 . Scrap Searched 1 | . . 1 . . Spaces Dug . | . . . . . Terrain Destroyed . | . . . . . Melee . | . . . . . Projectile . | . . . . . AOE . | . . . . . Terrain Rammed . | . . . . . Walls Destroyed . | . . . . . Machines Disabled . | . . . . . Actions | -11 -10 -10 -10 -8 --------- Run | Yrd Mat Min Sub Mat Total 1689 | 185 634 521 177 172 Wait 168 | 96 28 19 11 14 Move 1380 | 73 537 490 154 126 Hop . | . . . . . Pick Up 14 | 3 7 1 2 1 Fast Attach 12 | 5 2 1 1 3 Attach 8 | . . . 1 7 Detach . | . . . . . Swap 4 | . 3 . 1 . Drop 5 | . 3 . 2 . Fire 83 | 8 54 10 5 6 Melee . | . . . . . Ram 7 | . . . . 7 Kick 8 | . . . . 8 Crush . | . . . . . Escape Stasis . | . . . . . Rewire . | . . . . . Trap . | . . . . . Miscellaneous . | . . . . . Route ------- -11/Scrapyard -10/Materials (discovered 3 exits: [*Mat x2] / [*Min]) -10/Mines (discovered 2 exits: [*Mat] / [*Sub]) -10/Subcaves (discovered 2 exits: *Mat / [*Rec]) -8/Materials History --------- Turn | Location | Event 2 | -11/Scrapyard | Met Revision 17 51 | -11/Scrapyard | Discovered new exit (range 8) 207 | -11/Scrapyard | Entered Materials 303 | -10/Materials | Build established: Mutant 523 | -10/Materials | Discovered new exit (range 8) 893 | -10/Materials | Discovered new exit (range 4) 1016 | -10/Materials | Discovered new exit (range 8) 1046 | -10/Materials | Entered Mines 1144 | -10/Mines | Found a Scrap Suit stashed away for nefarious purposes 1147 | -10/Mines | Found Scrap Suit 1184 | -10/Mines | Discovered new exit (range 11) 1395 | -10/Mines | Discovered new exit (range 5) 1684 | -10/Mines | Entered Subcaves 1685 | -10/Subcaves | Approached by a straggling Scientist 1693 | -10/Subcaves | Shifting Twisted Machinery released Sub. Optics 1717 | -10/Subcaves | Shifting Twisted Machinery released Scrap Shield 1897 | -10/Subcaves | Ambushed by swarm of Subdwellers 1908 | -10/Subcaves | A swath of the cavern ceiling suddenly collapsed 1925 | -10/Subcaves | Shifting Twisted Machinery released Flamer 1939 | -10/Subcaves | Discovered new exit (range 9) 1941 | -10/Subcaves | Core integrity fell below 50% 1945 | -10/Subcaves | Discovered new exit (range 14) 1946 | -10/Subcaves | Lost 3 parts (1p1u1w) 1953 | -10/Subcaves | Entered Materials 1953 | -8/Materials | Evolved 4 slots: Utility x4 2211 | -8/Materials | Core integrity fell below 50% 2258 | -8/Materials | Core integrity fell below 20% 2263 | -8/Materials | Destroyed by G-47 Trooper with Particle Gun Last Messages --------------- 02209_ Critical hit (Burn: +37). 02212_ Acquired Welding Torch. 02212_ G-47 Trooper destroyed. 02212_ Ion Engine destroyed. 02221_ Welding Torch destroyed. 02223_ K-01 Serf collects debris. 02228_ O-16 Technician: "IFF HANDSHAKE FAILED. SECURING TERMINAL." 02228_ K-01 Serf cleans the Repair Station. 02230_ U-05 Engineer builds a Door. 02231_ K-01 Serf collects debris. 02231_ ALERT: Hostiles spotted, dispatching reinforcements to Terminal M004. 02231_ K-01 Serf collects debris. 02245_ Acquired Imp. Ion Engine. 02249_ Med. Storage Unit destroyed. 02250_ Slammed into G-47 Trooper. 02257_ Destabilizing: System corrupted (+2). 02258_ K-01 Serf collects debris. 02262_ Imp. Ion Engine destroyed. Map ----- +----------------------------------------------------+ | ?????????????????????????????????????????????????? | | ?????????????????????????????????????????????????? | | ?????????????????????????????????????????????????? | | ?????????????????????????????????????????????????? | | ?????????????????????????????????????????????????? | | ?????????????????????????????????????????????????? | | ?????????????????????????????????????????????????? | | ?????????????????????????????????????????????????? | | ?????????????????????????????????????????????????? | | ?????????????????????????????????????????????????? | | ??????????????????????? ???????????????????????? | | ??????????????????????# ???????????????????????? | | ??????????????????????# ???????????????????????? | | ??????????????????????# w???????????????????????? | | ??????????????????????# ????????? ??#??????????? | | ??????????????######?## ???????? #??????????? | | ??????????????? ?? ???????? #??????????? | | ???????????????? #??????? #??????????? | | ???????????????? """ !#??????? #??????????? | | ????????????????""" R" #??????? #??? ?????? | | ?????????????# """ """ #??????? #??# """??? | | ?????????????# """ #??????? ????# ??? | | ?????????????# ########+####### ??? | | ?????????????# k g """ ?? | | ?????????????# g g g """??? | | ?????????????# o @ g g """ ?? | | ?????????????????###+######+#### ? | | ????????????????????????# ## ? | | ????????????????????????#"" ## #??? | | ????????????????????????#"" ## #??? | | ????????????????????????#"T ## #??? | | ????????????????????????#"" ## ####+### #??? | | ????????????????????????#"" ## #??????# #??? | | ????????????????????????# ##! #??????# #??? | | ????????????????????????########% #??????# #??? | | ???????????????????????????????#! #??????# #??? | | ???????????????????????????????# #??????# #??? | | ?????????????????????########### #??????# #??? | | ?????????????????????# # #??????# #??? | | ?????????????????????# " #??????# #??? | | ?????????????????????# # #??????# #### | | ?????????????????????# * # #?????## ## ! | | ?????????????????????###########%*%####### | | ????????????????????????# """ # [ | | ????????????????????????# """ #= = " | | ????????????????????????# """ # | | ????????????????????????# +% """ ## ! | | ????????????????????????# = # """ ####+##### | | ????????????????????????# # """ #?# | | ????????????????????????######## ### | +----------------------------------------------------+ Best States ------------- Heat Dissipation 31 Energy Generation 12 Energy Capacity 265 Matter Stores 300 Matter Capacity 300 Sight Range 16 Terrain Scan Density 10 Armor Coverage 800 Core Shielding 20 Evasion (%) 55 Item Schematics ----------------- None Robot Schematics ------------------ None Fabricated ------------ Nothing Repaired ---------- Nothing Alien Tech Used ----------------- None Achievements -------------- None Challenges ------------ None Game ------ Seed PointThermoelectricMount Manual? 0 Play Time 00:27:13 Cumulative 3.1 hours Start 2025.06.27 @ 07:52:28 End 2025.06.27 @ 08:17:21 Sessions 1 Manual Loads 0 Difficulty Rogue Special Mode None Game No. 3 Rogue 3 Adventurer 0 Explorer 0 Win Type - Total 0 Types 0/0/0/0/0/0/0/0/0/0 Lore% 1 Gallery% 4 Achievement% 6 Wizard Run 0 Options --------- Layout 1 ASCII 0 Keyboard 0 Movement Mouse Keybinds 0 Fullscreen 2 Font 24/Smallcaps Map View 50x35 Zoom Use 0% Tactical HUD 1 Map Filters NONE Filters NONE Steam 1 RUN: 7308eff1-d6e0-42a7-b082-708bbd3bccb3